bitfinex-derivatives/quotes_ETHF0:USTF0_20230903
["timestamp","ask_amount","ask_price","bid_price","bid_amount"]
[1693768761703,5.497,1637.8,1637.6,1.41563992]
[1693768762004,21.58424,1637.7,1637.5,4.00604892]
[1693768762211,26.09412698,1637.7,1637.5,10.11433025]
[1693768762505,26.09412698,1637.7,1637.5,7.06003892]
[1693768762909,26.09412698,1637.7,1637.5,4.65640957]
[1693768763410,26.09412698,1637.7,1637.5,10.63890078]
[1693768766411,26.09412698,1637.7,1637.5,11.55121276]
[1693768768310,26.09412698,1637.7,1637.5,6.05421276]
[1693768775715,21.58862698,1637.7,1637.5,6.05421276]
[1693768776013,16.76228,1637.6,1637.5,6.05421276]
[1693768776211,16.76228,1637.6,1637.5,3.00022276]
[1693768777308,16.76666925,1637.6,1637.5,3.00022276]
[1693768777812,16.76666925,1637.6,1637.5,1.39780319]
[1693768778114,16.76666925,1637.6,1637.5,1.60241957]
[1693768778311,16.76666925,1637.6,1637.4,9.50304892]
[1693768778613,16.76666925,1637.6,1637.5,1.60241957]
[1693768778821,21.90376925,1637.6,1637.4,10.00113076]
[1693768780313,21.90376925,1637.6,1637.4,10.92736552]
[1693768783022,21.90376925,1637.6,1637.4,8.52373617]
[1693768784318,21.90376925,1637.6,1637.4,11.57790617]
[1693768784515,16.63307485,1637.6,1637.4,11.57790617]
[1693768785125,16.63307485,1637.6,1637.4,11.57791617]
[1693768785519,18.90301133,1637.6,1637.4,11.57791617]
[1693768787021,21.77017485,1637.6,1637.4,11.57791617]
[1693768787726,21.77017485,1637.6,1637.4,11.57543521]
[1693768790124,21.77017485,1637.6,1637.4,13.97534312]
[1693768791826,4.1921,1637.5,1637.4,13.97534312]
[1693768792024,13.35413,1637.5,1637.4,17.02964071]
[1693768792324,16.41252058,1637.5,1637.4,17.02964071]
[1693768792519,16.41252058,1637.5,1637.4,17.0298894]
[1693768792725,16.41252058,1637.5,1637.4,15.4297021]
[1693768798132,16.41252058,1637.5,1637.4,17.0303626]
[1693768798623,16.41252058,1637.5,1637.4,15.4297021]
[1693768805627,16.41252058,1637.5,1637.4,16.22967141]
[1693768810133,16.41252058,1637.5,1637.4,16.22968141]
[1693768811139,16.41252058,1637.5,1637.4,13.17549141]
[1693768812034,16.41252058,1637.5,1637.4,16.22969141]
[1693768813937,16.41252058,1637.5,1637.4,13.17549141]
[1693768817236,16.41252058,1637.5,1637.4,16.22969141]
[1693768819139,16.41252058,1637.5,1637.4,13.17549141]
[1693768819438,16.41252058,1637.5,1637.4,16.22969141]
[1693768820748,16.41252058,1637.5,1637.4,13.17549141]
[1693768823145,16.41252058,1637.5,1637.4,7.67849141]
[1693768833052,13.25797088,1637.5,1637.4,16.22969141]
[1693768833254,6.11240058,1637.5,1637.4,29.25418609]
[1693768833451,6.11240058,1637.5,1637.4,30.05415539]
[1693768834247,6.10802,1637.5,1637.4,30.05415539]
[1693768835250,9.16773423,1637.5,1637.4,30.05415539]
[1693768835549,9.16773423,1637.5,1637.4,29.2586758]
[1693768838550,12.03489775,1637.5,1637.4,29.2586758]
[1693768838756,9.16773423,1637.5,1637.4,29.2586758]
[1693768838959,13.43363423,1637.5,1637.4,29.2586758]
[1693768839161,13.43363423,1637.5,1637.4,26.2044758]
[1693768841754,9.16773423,1637.5,1637.4,29.2586758]
[1693768842055,6.11372423,1637.5,1637.4,29.2586758]
[1693768842557,6.11372423,1637.5,1637.4,30.05415539]
[1693768842754,6.11372423,1637.5,1637.4,26.05430887]
[1693768843352,9.16773423,1637.5,1637.4,26.05430887]
[1693768845557,9.16773423,1637.5,1637.4,29.25671676]
[1693768846158,9.16773423,1637.5,1637.4,26.20251676]
[1693768846664,9.16773423,1637.5,1637.4,26.20219758]
[1693768847153,9.16773423,1637.5,1637.4,22.99996451]
[1693768847460,9.16203,1637.5,1637.4,22.99996451]
[1693768848056,9.16203,1637.5,1637.4,27.00275585]
[1693768849657,13.62803,1637.5,1637.4,26.20197887]
[1693768856268,17.84523,1637.5,1637.4,23.14777887]
[1693768858568,20.71239352,1637.5,1637.4,23.14777887]
[1693768858868,17.84523,1637.5,1637.4,23.14777887]
[1693768862169,20.89924,1637.5,1637.4,23.14777887]
[1693768865069,1.88088621,1637.5,1637.4,36.99427476]
[1693768865270,1.64952588,1637.8,1637.6,5.497]
[1693768865571,5.38613512,1637.7,1637.6,19.06447589]
[1693768865760,5.38613512,1637.7,1637.6,27.61516282]
[1693768865966,5.38613512,1637.7,1637.6,41.92332891]
[1693768867672,9.16067,1637.8,1637.6,41.92332891]
[1693768867872,9.16067,1637.8,1637.7,11.74811601]
[1693768868069,9.16067,1637.8,1637.7,20.90894601]
[1693768868070,6.1071,1637.8,1637.7,20.90894601]
[1693768868266,3.0592675,1637.8,1637.7,35.62660909]
[1693768868472,6.1128375,1637.8,1637.7,35.62660909]
[1693768868870,6.1128375,1637.8,1637.7,35.62552553]
[1693768869884,10.3513375,1637.8,1637.7,32.42906602]
[1693768870481,10.3513375,1637.8,1637.7,34.82544819]
[1693768870782,13.4049075,1637.8,1637.7,34.82544819]
[1693768873384,13.4049075,1637.8,1637.7,36.42245294]
[1693768877484,13.4049075,1637.8,1637.7,34.02607077]
[1693768877989,13.4049075,1637.8,1637.7,36.42245294]
[1693768879792,13.4049075,1637.8,1637.7,34.02607077]
[1693768881993,13.4049075,1637.8,1637.7,29.37549308]
[1693768882196,13.4049075,1637.8,1637.7,34.02532658]
[1693768882391,13.4049075,1637.8,1637.7,34.92966505]
[1693768886698,13.2849075,1637.8,1637.7,34.92966505]
[1693768888096,13.2849075,1637.8,1637.7,35.72776213]
[1693768895104,13.2849075,1637.8,1637.7,37.32408133]
[1693768895802,13.2262075,1637.8,1637.7,37.32408133]
[1693768898405,13.2262075,1637.8,1637.7,35.72776213]
[1693768901307,13.22048,1637.8,1637.7,35.72776213]
[1693768901905,13.22048,1637.8,1637.7,35.72911978]
[1693768904609,13.22048,1637.8,1637.7,36.52766989]
[1693768911198,16.08764352,1637.8,1637.7,36.52766989]
[1693768911403,13.22048,1637.8,1637.7,36.52766989]
[1693768914209,13.2262075,1637.8,1637.7,36.52766989]
[1693768921526,16.09337102,1637.8,1637.7,36.52766989]
[1693768922428,13.2262075,1637.8,1637.7,36.52766989]
[1693768925943,16.09337102,1637.8,1637.7,36.52766989]
[1693768926139,13.2262075,1637.8,1637.7,36.52766989]
[1693768930943,16.09337102,1637.8,1637.7,36.52766989]
[1693768933348,13.2262075,1637.8,1637.7,36.52766989]
[1693768933747,16.09337102,1637.8,1637.7,36.52766989]
[1693768934750,15.56416752,1637.8,1637.7,36.52766989]
[1693768935153,12.697004,1637.8,1637.7,36.52766989]
[1693768941255,12.697004,1637.8,1637.7,33.33346948]
[1693768942849,12.697004,1637.8,1637.7,36.53525645]
[1693768943156,15.56416752,1637.8,1637.7,36.53525645]
[1693768944758,12.697004,1637.8,1637.7,33.33346948]
[1693768945153,12.697004,1637.8,1637.7,36.53527431]
[1693768946055,15.56416752,1637.8,1637.7,36.53527431]
[1693768946557,12.697004,1637.8,1637.7,36.53527431]
[1693768947459,15.56416752,1637.8,1637.7,36.53527431]
[1693768947756,12.697004,1637.8,1637.7,36.53527431]
[1693768948357,12.697004,1637.8,1637.7,33.33346948]
[1693768948757,12.646577,1637.8,1637.7,33.33346948]
[1693768950462,12.646577,1637.8,1637.7,37.32621999]
[1693768954260,15.51374052,1637.8,1637.7,37.32621999]
[1693768955761,15.45504052,1637.8,1637.7,37.32621999]
[1693768956863,12.587877,1637.8,1637.7,37.32621999]
[1693768957263,15.45504052,1637.8,1637.7,37.32621999]
[1693768957765,12.587877,1637.8,1637.7,37.32621999]
[1693768958467,15.45504052,1637.8,1637.7,37.32621999]
[1693768961977,12.587877,1637.8,1637.7,37.32621999]
[1693768962376,15.45504052,1637.8,1637.7,37.32621999]
[1693768962979,12.587877,1637.8,1637.7,37.32621999]
[1693768963280,15.45504052,1637.8,1637.7,37.32621999]
[1693768966082,12.587877,1637.8,1637.7,37.32621999]
[1693768966581,15.45504052,1637.8,1637.7,37.32621999]
[1693768967284,12.587877,1637.8,1637.7,37.32621999]
[1693768967582,15.45504052,1637.8,1637.7,37.32621999]
[1693768969286,12.587877,1637.8,1637.7,37.32621999]
[1693768969584,15.45504052,1637.8,1637.7,29.45490191]
[1693768969786,12.587877,1637.8,1637.7,29.45490191]
[1693768969983,12.587877,1637.8,1637.7,37.27188712]
[1693768970686,15.45504052,1637.8,1637.7,37.27188712]
[1693768971284,12.587877,1637.8,1637.7,37.27188712]
[1693768972785,15.45504052,1637.8,1637.7,37.27188712]
[1693768979590,12.587877,1637.8,1637.7,37.27188712]
[1693768979987,15.45504052,1637.8,1637.7,37.27188712]
[1693768980389,12.09945266,1637.8,1637.7,37.27188712]
[1693768980591,11.95238166,1637.8,1637.7,34.21827712]
[1693768982698,14.81954518,1637.8,1637.7,34.21827712]
[1693768985696,17.87311518,1637.8,1637.7,27.32173446]
[1693768985895,17.87311518,1637.8,1637.7,11.85837993]
[1693768986198,17.87311518,1637.8,1637.7,13.46057965]
[1693768986498,17.87311518,1637.8,1637.6,5.99360428]
[1693768986693,14.48437648,1637.7,1637.6,5.99360428]
[1693768987296,14.48987137,1637.7,1637.6,5.99360428]
[1693768989507,19.98687137,1637.7,1637.4,9.32506671]
[1693768989802,15.2699,1637.5,1637.4,6.9213166]
[1693768989995,17.53983648,1637.5,1637.4,6.9213166]
[1693768993199,17.53983648,1637.5,1637.4,1.4243166]
[1693768993405,17.53983648,1637.5,1637.3,7.89893075]
[1693768993905,2.86716352,1637.4,1637.3,7.89893075]
[1693768994093,15.08384352,1637.4,1637.3,7.89893075]
[1693768994794,15.08384352,1637.4,1637.3,8.39295883]
[1693768995197,15.08384352,1637.4,1637.3,2.89595883]
[1693768995398,15.08384352,1637.4,1637.3,0.49402808]
[1693768995599,15.08384352,1637.4,1637.2,5.497]
[1693768995912,2.33103648,1637.3,1637.2,5.497]
[1693768996200,14.54843648,1637.3,1637.2,5.97367747]
[1693768996594,14.54843648,1637.3,1637.2,6.89329037]
[1693768999905,12.2785,1637.3,1637.2,6.89329037]
[1693769000103,11.36207978,1637.3,1637.2,6.89329037]
[1693769001307,11.36734777,1637.3,1637.2,6.89329037]
[1693769005012,11.42824777,1637.3,1637.2,6.89329037]
[1693769005905,11.42824777,1637.3,1637.2,9.29522112]
[1693769006507,8.31299777,1637.3,1637.2,12.39029037]
[1693769006710,9.16831799,1637.3,1637.2,24.74490718]
[1693769007609,9.16831799,1637.3,1637.2,27.79944718]
[1693769007808,9.16831799,1637.3,1637.2,34.3412029]
[1693769007809,6.11396799,1637.3,1637.2,34.3412029]
[1693769010604,5.50626799,1637.3,1637.2,35.13893001]
[1693769010805,8.86816799,1637.4,1637.2,35.13893001]
[1693769011009,8.86813799,1637.4,1637.3,20.96667791]
[1693769011506,6.10825,1637.5,1637.4,0.0611]
[1693769011813,4.4511655,1637.5,1637.4,26.90096358]
[1693769013012,4.4511655,1637.5,1637.4,20.65563037]
[1693769013312,4.4511655,1637.5,1637.4,26.90060027]
[1693769014011,7.5052355,1637.5,1637.4,26.90060027]
[1693769015714,10.37239902,1637.5,1637.4,26.90060027]
[1693769016215,7.10005959,1637.5,1637.4,26.90060027]
[1693769022715,7.10005959,1637.5,1637.4,23.70974397]
[1693769022915,6.96345959,1637.5,1637.4,23.70974397]
[1693769023112,6.96345959,1637.5,1637.4,27.69831434]
[1693769026420,9.83062311,1637.5,1637.4,27.69831434]
[1693769026921,9.83062311,1637.5,1637.4,28.18884326]
[1693769027623,6.96345959,1637.5,1637.4,28.18884326]
[1693769030722,6.96345959,1637.5,1637.4,25.13467326]
[1693769031222,9.83062311,1637.5,1637.4,25.13467326]
[1693769032524,9.83548574,1637.5,1637.4,25.13467326]
[1693769033522,9.83548574,1637.5,1637.4,24.34389613]
[1693769034220,6.96832222,1637.5,1637.4,24.34389613]
[1693769034924,9.83548574,1637.5,1637.4,24.34389613]
[1693769036128,9.83548574,1637.5,1637.4,21.2896857]
[1693769036327,9.83548574,1637.5,1637.4,24.34381073]
[1693769038522,6.96832222,1637.5,1637.4,24.34381073]
[1693769039130,6.96832222,1637.5,1637.4,27.39801073]
[1693769040834,6.96832222,1637.5,1637.4,24.20031432]
[1693769042136,6.96832222,1637.5,1637.4,27.39801073]
[1693769042431,6.96832222,1637.5,1637.4,26.59866943]
[1693769042934,6.96832222,1637.5,1637.4,24.20031432]
[1693769043533,6.96832222,1637.5,1637.4,26.59898212]
[1693769044033,6.96832222,1637.5,1637.4,26.59928414]
[1693769047436,6.96832222,1637.5,1637.4,23.48398414]
[1693769047643,12.10542222,1637.5,1637.4,14.49479377]
[1693769047941,15.15949222,1637.5,1637.4,11.44062377]
[1693769048437,14.66389222,1637.5,1637.4,11.44062377]
[1693769048839,14.66389222,1637.5,1637.4,14.49482377]
[1693769050339,14.56969222,1637.5,1637.4,14.49482377]
[1693769052242,11.7025287,1637.5,1637.4,14.49482377]
[1693769053145,14.56969222,1637.5,1637.4,14.49482377]
[1693769053750,14.56969222,1637.5,1637.4,12.09585395]
[1693769054047,14.56969222,1637.5,1637.4,15.29355036]
[1693769054648,14.56969222,1637.5,1637.4,12.09585395]
[1693769054850,14.56969222,1637.5,1637.4,15.29355036]
[1693769058150,14.56969222,1637.5,1637.4,18.34775036]
[1693769058350,14.56969222,1637.5,1637.4,15.29355036]
[1693769061162,14.56969222,1637.5,1637.4,18.34775036]
[1693769063959,14.56969222,1637.5,1637.4,18.40885036]
[1693769064257,14.56969222,1637.5,1637.4,15.35465036]
[1693769067160,14.56969222,1637.5,1637.4,18.40885036]
[1693769067360,14.35969222,1637.5,1637.4,18.40885036]
[1693769068258,14.35969222,1637.5,1637.4,15.35465036]
[1693769069168,14.35969222,1637.5,1637.4,18.40885036]
[1693769070160,14.35969222,1637.5,1637.4,15.35465036]
[1693769071258,14.35969222,1637.5,1637.4,12.23935036]
[1693769072262,14.35969222,1637.5,1637.4,15.29355036]
[1693769075366,14.35969222,1637.5,1637.4,12.15695395]
[1693769075668,14.35969222,1637.5,1637.4,14.56033908]
[1693769075867,14.35969222,1637.5,1637.4,12.15695395]
[1693769076370,14.35969222,1637.5,1637.4,14.56019972]
[1693769076568,14.35969222,1637.5,1637.4,12.15695395]
[1693769076768,14.35969222,1637.5,1637.4,14.56024153]
[1693769078568,14.35969222,1637.5,1637.4,12.15695395]
[1693769078868,14.35969222,1637.5,1637.4,14.56027976]
[1693769079071,14.35969222,1637.5,1637.4,9.10275395]
[1693769079568,14.35969222,1637.5,1637.4,11.50607948]
[1693769079769,14.35969222,1637.5,1637.4,9.10275395]
[1693769080170,14.35969222,1637.5,1637.4,12.15692395]
[1693769080569,14.35969222,1637.5,1637.4,11.44512987]
[1693769080868,14.35969222,1637.5,1637.4,0.49052892]
[1693769081063,14.35969222,1637.5,1637.3,7.90047592]
[1693769081366,18.66749222,1637.5,1637.3,7.90047592]
[1693769081763,18.66749222,1637.5,1637.3,5.497]
[1693769083367,24.16449222,1637.5,1637.2,9.29676629]
[1693769083565,28.43909222,1637.5,1637.2,9.29676629]
[1693769088471,28.43909222,1637.5,1637.2,12.35129629]
[1693769088672,28.43909222,1637.5,1637.2,9.29676629]
[1693769090782,28.43909222,1637.5,1637.2,6.89329037]
[1693769091581,28.43909222,1637.5,1637.2,9.29676629]
[1693769091787,28.43909222,1637.5,1637.2,6.89329037]
[1693769093185,5.497,1637.4,1637.2,1.39629037]
[1693769093386,0.0609,1637.2,1637.1,28.46989592]
[1693769093685,9.22452,1637.2,1637.1,31.52459888]
[1693769094285,9.22934379,1637.2,1637.1,31.52459888]
[1693769096384,9.22934379,1637.2,1637.1,32.42037021]
[1693769096890,9.22934379,1637.2,1637.1,32.90114543]
[1693769100486,9.22934379,1637.2,1637.1,35.95587543]
[1693769101285,0.06572379,1637.2,1637.1,45.97966083]
[1693769101989,3.12026379,1637.2,1637.1,45.97966083]
[1693769102182,0.06572379,1637.2,1637.1,45.97966083]
[1693769102588,0.00482379,1637.2,1637.1,46.77388132]
[1693769102890,6.10845,1637.4,1637.2,0.0010413]
[1693769103084,9.16273,1637.4,1637.3,14.72115]
[1693769103290,9.16738544,1637.4,1637.3,24.74594387]
[1693769103493,2.56951144,1637.4,1637.3,29.03134387]
[1693769103784,5.62372144,1637.4,1637.3,31.43161057]
[1693769105394,8.67793144,1637.4,1637.3,31.43161057]
[1693769108493,11.54509496,1637.4,1637.3,28.37726057]
[1693769108700,14.59930496,1637.4,1637.3,22.20746057]
[1693769108896,14.59930496,1637.4,1637.3,23.80770383]
[1693769110702,14.59930496,1637.4,1637.3,15.91043713]
[1693769111401,14.59813125,1637.4,1637.3,8.94034622]
[1693769111602,14.59813125,1637.4,1637.3,5.88564326]
[1693769114807,14.59813125,1637.4,1637.3,8.94023525]
[1693769115305,14.59464952,1637.4,1637.3,8.94023525]
[1693769116309,14.59464952,1637.4,1637.3,9.42279835]
[1693769116502,14.59464952,1637.4,1637.3,6.36820636]
[1693769117904,14.59464952,1637.4,1637.3,2.08280636]
[1693769123805,14.59464952,1637.4,1637.3,0.4825631]
[1693769124010,14.59464952,1637.4,1637.3,1.60148033]
[1693769125013,14.59464952,1637.4,1637.3,4.65612436]
[1693769128415,14.59464952,1637.4,1637.3,7.71048436]
[1693769128709,14.59464952,1637.4,1637.3,4.65612436]
[1693769129618,11.727486,1637.4,1637.3,4.65612436]
[1693769130117,14.59464952,1637.4,1637.3,7.71047436]
[1693769130915,8.673276,1637.4,1637.3,10.76482436]
[1693769131213,8.673276,1637.4,1637.3,16.32292436]
[1693769131419,8.673276,1637.4,1637.3,23.27784486]
[1693769132308,8.67674286,1637.4,1637.3,26.33219486]
[1693769133719,5.62253286,1637.4,1637.3,24.73071453]
[1693769134018,8.67674286,1637.4,1637.3,24.73071453]
[1693769136115,8.67674286,1637.4,1637.3,25.21206453]
[1693769142727,8.67674286,1637.4,1637.3,22.15771453]
[1693769144826,11.54390638,1637.4,1637.3,22.15771453]
[1693769145125,8.67674286,1637.4,1637.3,22.15771453]
[1693769145825,11.54390638,1637.4,1637.3,22.15771453]
[1693769146126,8.67674286,1637.4,1637.3,22.15771453]
[1693769148031,11.54390638,1637.4,1637.3,22.15771453]
[1693769148329,8.67674286,1637.4,1637.3,22.15771453]
[1693769152032,11.54390638,1637.4,1637.3,22.15771453]
[1693769153035,8.67674286,1637.4,1637.3,22.15771453]
[1693769153733,8.67674286,1637.4,1637.3,16.70085]
[1693769153935,8.67674286,1637.4,1637.3,22.15853873]
[1693769155028,11.54390638,1637.4,1637.3,22.15853873]
[1693769156332,11.54390638,1637.4,1637.3,22.09743873]
[1693769158835,8.67674286,1637.4,1637.3,22.09743873]
[1693769163631,14.59811638,1637.4,1637.3,11.43603873]
[1693769164234,14.59811638,1637.4,1637.3,13.03832912]
[1693769165734,14.59811638,1637.4,1637.3,10.63506153]
[1693769166142,14.59811638,1637.4,1637.3,13.03832912]
[1693769166639,14.59811638,1637.4,1637.3,10.63506153]
[1693769167242,11.73095286,1637.4,1637.3,10.63506153]
[1693769167739,11.73095286,1637.4,1637.3,13.03832912]
[1693769169341,14.59811638,1637.4,1637.3,13.03832912]
[1693769169540,14.59811638,1637.4,1637.3,13.03875789]
[1693769173049,11.73095286,1637.4,1637.3,13.03875789]
[1693769173242,11.73095286,1637.4,1637.3,10.63529916]
[1693769174350,11.73095286,1637.4,1637.3,13.68965916]
[1693769175849,11.73095286,1637.4,1637.3,10.63529916]
[1693769176251,14.59811638,1637.4,1637.3,10.63529916]
[1693769176649,11.73095286,1637.4,1637.3,10.63529916]
[1693769177654,14.59811638,1637.4,1637.3,13.68964916]
[1693769178154,14.59811638,1637.4,1637.3,10.63529916]
[1693769181958,11.73095286,1637.4,1637.3,10.63529916]
[1693769182457,14.59811638,1637.4,1637.3,10.63529916]
[1693769183362,11.73095286,1637.4,1637.3,13.68964916]
[1693769183963,14.59811638,1637.4,1637.3,13.68964916]
[1693769185162,11.73095286,1637.4,1637.3,13.68964916]
[1693769188365,14.59811638,1637.4,1637.3,16.09310789]
[1693769188865,14.59811638,1637.4,1637.3,13.68964916]
[1693769189161,14.59811638,1637.4,1637.3,16.09310789]
[1693769189570,11.73095286,1637.4,1637.3,13.68964916]
[1693769189766,14.59811638,1637.4,1637.3,13.68964916]
[1693769189967,14.59811638,1637.4,1637.3,16.09310789]
[1693769194170,11.73095286,1637.4,1637.3,16.09310789]
[1693769195870,11.73095286,1637.4,1637.3,13.03875789]
[1693769196970,11.73095286,1637.4,1637.3,16.09310789]
[1693769197770,11.73095286,1637.4,1637.3,14.49080207]
[1693769199462,11.73095286,1637.4,1637.3,18.96880207]
[1693769200070,14.59811638,1637.4,1637.3,18.96880207]
[1693769203375,14.59811638,1637.4,1637.3,18.16816371]
[1693769204777,14.59811638,1637.4,1637.3,20.57162244]
[1693769205875,14.59811638,1637.4,1637.3,16.09362244]
[1693769206175,14.59811638,1637.4,1637.3,13.03927244]
[1693769209280,14.59811638,1637.4,1637.3,11.43645207]
[1693769213188,14.59811638,1637.4,1637.3,5.93945207]
[1693769219487,14.59811638,1637.4,1637.3,3.53599334]
[1693769219691,14.59811638,1637.4,1637.3,5.94138352]
[1693769236706,14.59811638,1637.4,1637.3,10.34808352]
[1693769240805,14.59811638,1637.4,1637.3,13.40244352]
[1693769243212,5.62253286,1637.4,1637.3,25.06926352]
[1693769243509,5.22253286,1637.4,1637.3,25.06926352]
[1693769243702,0.00346686,1637.4,1637.3,28.12362352]
[1693769243905,9.16216,1637.5,1637.4,9.22361]
[1693769244106,6.1081,1637.5,1637.4,14.68298643]
[1693769244307,9.16215,1637.5,1637.4,14.68298643]
[1693769244506,6.11145364,1637.5,1637.4,14.68298643]
[1693769245211,12.03266716,1637.5,1637.4,14.68298643]
[1693769247011,9.16550364,1637.5,1637.4,14.68298643]
[1693769247512,9.16550364,1637.5,1637.4,16.28572748]
[1693769248616,5.89275364,1637.5,1637.4,26.91665112]
[1693769248809,0.00335364,1637.5,1637.4,29.97082112]
[1693769249008,3.05733364,1637.5,1637.4,29.97082112]
[1693769249309,6.11131364,1637.5,1637.4,29.97082112]
[1693769252320,6.11131364,1637.5,1637.4,29.9688929]
[1693769258316,6.11131364,1637.5,1637.4,30.86359887]
[1693769259521,4.70617071,1637.6,1637.5,10.0611]
[1693769259824,8.6662433,1637.7,1637.6,9.2225]
[1693769260022,5.6124933,1637.7,1637.6,14.7195]
[1693769260222,5.6124933,1637.7,1637.6,21.45891476]
[1693769260422,5.61573502,1637.7,1637.6,21.45891476]
[1693769260623,5.61573502,1637.7,1637.6,23.05950602]
[1693769260921,8.66948502,1637.7,1637.6,23.05950602]
[1693769261316,8.66948502,1637.7,1637.6,21.45891476]
[1693769261515,8.6662433,1637.7,1637.6,21.45891476]
[1693769268027,8.17737723,1637.7,1637.6,21.45891476]
[1693769268228,8.17737723,1637.7,1637.6,31.61030602]
[1693769268229,2.06990723,1637.7,1637.6,31.61030602]
[1693769268428,9.16072,1637.8,1637.6,31.61030602]
[1693769268727,9.16068,1637.8,1637.7,14.65783]
[1693769268925,6.10712,1637.8,1637.7,14.65783]
[1693769269124,9.16063,1637.8,1637.7,19.21443]
[1693769269526,9.16389969,1637.8,1637.7,19.21443]
[1693769269723,9.16389969,1637.8,1637.7,16.16082]
[1693769272427,9.16384969,1637.8,1637.7,16.16082]
[1693769272828,12.03101321,1637.8,1637.7,16.16082]
[1693769273132,9.16384969,1637.8,1637.7,16.16082]
[1693769277245,12.21735969,1637.8,1637.7,16.16082]
[1693769280142,15.08452321,1637.8,1637.7,16.16082]
[1693769280338,12.21735969,1637.8,1637.7,16.16082]
[1693769281242,12.21735969,1637.8,1637.7,17.09298922]
[1693769285548,15.08452321,1637.8,1637.7,17.09298922]
[1693769286648,12.21735969,1637.8,1637.7,17.09298922]
[1693769287349,12.21735969,1637.8,1637.7,14.03937922]
[1693769287548,12.21735969,1637.8,1637.7,15.63997048]
[1693769288350,9.16379969,1637.8,1637.7,15.63997048]
[1693769288740,12.21730969,1637.8,1637.7,15.63997048]
[1693769295753,15.08447321,1637.8,1637.7,15.63997048]
[1693769295952,12.21730969,1637.8,1637.7,15.63997048]
[1693769298658,15.08447321,1637.8,1637.7,15.63997048]
[1693769299458,12.21730969,1637.8,1637.7,18.69389146]
[1693769299754,15.08447321,1637.8,1637.7,15.63997048]
[1693769300456,15.08447321,1637.8,1637.7,18.69389804]
[1693769301154,15.08447321,1637.8,1637.7,15.63997048]
[1693769301357,12.21730969,1637.8,1637.7,15.63997048]
[1693769303458,11.74730969,1637.8,1637.7,15.63997048]
[1693769303657,11.74730969,1637.8,1637.7,18.69390762]
[1693769306958,11.74730969,1637.8,1637.7,21.09672298]
[1693769307659,8.69379969,1637.8,1637.7,21.09672298]
[1693769309462,8.69379969,1637.8,1637.7,19.49613172]
[1693769309650,8.69379969,1637.8,1637.7,21.09896755]
[1693769310861,11.74730969,1637.8,1637.7,21.09896755]
[1693769311260,14.61447321,1637.8,1637.7,21.09896755]
[1693769311859,14.61447321,1637.8,1637.7,19.49613172]
[1693769312964,14.61447321,1637.8,1637.7,11.88592172]
[1693769313162,14.61447321,1637.8,1637.7,8.03209327]
[1693769314258,14.61447321,1637.8,1637.7,6.42916922]
[1693769316062,14.61447321,1637.8,1637.7,8.03209327]
[1693769316262,11.74730969,1637.8,1637.7,8.03209327]
[1693769316463,14.61447321,1637.8,1637.7,8.03209327]
[1693769317263,11.74730969,1637.8,1637.7,8.03209327]
[1693769317566,11.74404,1637.8,1637.7,8.03209327]
[1693769317766,14.61120352,1637.8,1637.7,8.03209327]
[1693769318168,14.61120352,1637.8,1637.7,6.42916922]
[1693769318965,14.61120352,1637.8,1637.7,8.03209327]
[1693769319468,14.61120352,1637.8,1637.7,6.42916922]
[1693769323478,14.61120352,1637.8,1637.7,8.03209327]
[1693769324876,8.69053,1637.8,1637.7,11.08570327]
[1693769325176,11.74404,1637.8,1637.7,8.03209327]
[1693769325379,14.61120352,1637.8,1637.7,8.03209327]
[1693769325773,11.55769352,1637.8,1637.7,11.08570327]
[1693769325980,14.61120352,1637.8,1637.7,11.08570327]
[1693769326278,11.55769352,1637.8,1637.7,11.08570327]
[1693769326669,14.61120352,1637.8,1637.7,11.08570327]
[1693769327880,11.55769352,1637.8,1637.7,11.08570327]
[1693769328086,14.61120352,1637.8,1637.7,11.08570327]
[1693769328781,11.55769352,1637.8,1637.7,11.08570327]
[1693769328976,11.55769352,1637.8,1637.7,14.13931327]
[1693769329181,11.55769352,1637.8,1637.7,18.42811327]
[1693769330178,11.55769352,1637.8,1637.7,21.48210118]
[1693769332285,8.010416,1637.8,1637.7,21.48210118]
[1693769333286,10.87757952,1637.8,1637.7,21.48210118]
[1693769333486,13.93108952,1637.8,1637.7,15.37488118]
[1693769338684,13.93108952,1637.8,1637.7,18.42849118]
[1693769339989,10.87757952,1637.8,1637.7,18.42849118]
[1693769341892,13.93108952,1637.8,1637.7,18.42849118]
[1693769346397,11.063926,1637.8,1637.7,18.42849118]
[1693769346598,13.93108952,1637.8,1637.7,18.42849118]
[1693769350000,13.93108952,1637.8,1637.7,15.37488118]
[1693769351208,13.93108952,1637.8,1637.7,5.58908118]
[1693769361207,13.93108952,1637.8,1637.7,7.99189654]
[1693769365513,11.063926,1637.8,1637.7,7.99189654]
[1693769365810,11.063926,1637.8,1637.7,11.04550654]
[1693769366003,11.063926,1637.8,1637.7,15.67320654]
[1693769367517,13.93108952,1637.8,1637.7,15.67320654]
[1693769368522,13.93108952,1637.8,1637.7,13.27039118]
[1693769369414,13.93108952,1637.8,1637.7,21.17020654]
[1693769370517,11.063926,1637.8,1637.7,21.17020654]
[1693769371819,13.93108952,1637.8,1637.7,21.17020654]
[1693769372319,11.063926,1637.8,1637.7,21.17020654]
[1693769375418,13.93108952,1637.8,1637.7,21.17020654]
[1693769375615,13.93108952,1637.8,1637.7,19.56728249]
[1693769379827,13.93108952,1637.8,1637.7,21.17053817]
[1693769383636,13.93108952,1637.8,1637.7,18.76772281]
[1693769397846,13.93108952,1637.8,1637.7,14.14002281]
[1693769398243,13.93108952,1637.8,1637.7,18.61442281]
[1693769400555,13.93108952,1637.8,1637.7,17.01120647]
[1693769400737,13.93108952,1637.8,1637.7,18.61430436]
[1693769401448,13.93108952,1637.8,1637.7,15.56027711]
[1693769404842,13.93108952,1637.8,1637.7,2.53526711]
[1693769404843,19.42808952,1637.8,1637.7,2.53526711]
[1693769405044,19.42808952,1637.8,1637.6,2.09274222]
[1693769405242,13.26393648,1637.7,1637.4,2.49780386]
[1693769405440,13.26393648,1637.7,1637.3,2.08444789]
[1693769405441,5.497,1637.5,1637.3,2.08444789]
[1693769405643,14.65951,1637.4,1637.3,0.48135]
[1693769405942,23.03778648,1637.4,1637.2,1.60213263]
[1693769406144,12.27906,1637.2,1637.1,2.40319894]
[1693769406336,14.54899648,1637.2,1637.1,4.50499078]
[1693769406540,17.41616,1637.2,1637.1,7.55998066]
[1693769407548,17.41616,1637.2,1637.1,2.10179184]
[1693769408348,17.41616,1637.2,1637.1,1.39636251]
[1693769408550,17.41616,1637.2,1637.0,15.56042101]
[1693769409946,12.21816,1637.2,1637.1,5.497]
[1693769410152,12.21816,1637.2,1637.1,8.55172]
[1693769410351,12.21816,1637.2,1637.1,11.60644]
[1693769410751,9.16362,1637.2,1637.1,11.60644]
[1693769411956,12.21816,1637.2,1637.1,8.55172]
[1693769412152,9.16362,1637.2,1637.1,13.20886101]
[1693769412652,9.16362,1637.2,1637.1,10.15414101]
[1693769412855,15.08532352,1637.2,1637.1,10.15414101]